bitfinex/quotes_SOLUSD_20241229
["timestamp","ask_amount","ask_price","bid_price","bid_amount"]
[1735437519928,8.05117385,192.98,192.9,10.33438789]
[1735437520158,0.77717804,192.97,192.89,16.23438789]
[1735437521175,24.55406204,193.0,192.89,16.23438789]
[1735437523678,24.55406204,193.0,192.9,10.33438789]
[1735437525766,24.55406204,193.0,192.9,16.23438789]
[1735437531370,0.77717804,193.0,192.9,16.23438789]
[1735437531562,0.77717804,193.01,192.9,16.23438789]
[1735437531766,0.77717804,193.01,192.91,10.33438789]
[1735437533780,0.77717804,193.01,192.9,16.23438789]
[1735437539983,0.77717804,193.01,192.91,10.33438789]
[1735437540582,24.55406204,193.02,192.9,16.23438789]
[1735437540780,32.60523589,193.02,192.9,16.23438789]
[1735437547991,24.55406204,193.02,192.9,16.23438789]
[1735437549296,32.60523589,193.02,192.9,16.23438789]
[1735437550793,32.60523589,193.02,192.91,10.33438789]
[1735437551193,32.60523589,193.02,192.9,5.9]
[1735437551371,32.60523589,193.02,192.9,16.23438789]
[1735437551576,32.60523589,193.02,192.9,5.9]
[1735437552079,8.05117385,193.0,192.9,5.9]
[1735437552386,24.55406204,192.99,192.9,5.9]
[1735437553380,32.60523589,192.99,192.9,5.9]
[1735437558699,24.55406204,192.99,192.9,5.9]
[1735437559499,0.77717804,192.99,192.9,16.23438789]
[1735437559681,0.77717804,193.0,192.9,16.23438789]
[1735437560610,24.55406204,193.01,192.9,16.23438789]
[1735437560993,24.55406204,193.01,192.9,5.9]
[1735437561414,24.55406204,193.01,192.9,16.23438789]
[1735437562600,24.55406204,193.01,192.9,5.9]
[1735437562794,24.55406204,193.01,192.91,10.33438789]
[1735437563607,24.55406204,193.01,192.9,16.23438789]
[1735437565011,32.60523589,193.01,192.9,16.23438789]
[1735437565612,32.60523589,193.01,192.9,5.9]
[1735437567115,32.60523589,193.01,192.9,16.23438789]
[1735437567610,32.60523589,193.01,192.91,10.33438789]
[1735437567810,32.60523589,193.01,192.91,16.23438789]
[1735437568217,24.55406204,193.01,192.91,16.23438789]
[1735437568514,24.55406204,193.01,192.91,5.9]
[1735437568690,24.55406204,193.01,192.91,16.23438789]
[1735437569715,24.55406204,193.01,192.91,5.9]
[1735437569887,24.55406204,193.01,192.91,16.23438789]
[1735437570489,24.55406204,193.01,192.91,5.9]
[1735437570684,24.55406204,193.01,192.91,16.23438789]
[1735437571113,32.60523589,193.01,192.91,16.23438789]
[1735437571613,8.82835189,193.01,192.91,16.23438789]
[1735437571789,8.05117385,193.01,192.94,16.23438789]
[1735437572690,8.82835189,193.01,192.94,5.9]
[1735437572910,0.77717804,193.01,192.94,5.9]
[1735437573826,24.55406204,193.03,192.94,5.9]
[1735437578421,0.77717804,193.03,192.94,5.9]
[1735437578928,0.77717804,193.04,192.94,5.9]
[1735437586026,23.776884,193.03,192.94,5.9]
[1735437586327,23.776884,193.01,192.94,5.9]
[1735437586625,0.77717804,193.0,192.94,5.9]
[1735437589815,0.77717804,193.0,192.91,1.5865]
[1735437590215,23.776884,192.99,192.9,5.9]
[1735437590410,23.776884,192.97,192.85,6.67741929]
[1735437590603,0.77717804,192.96,192.85,16.23438789]
[1735437590804,0.77717804,192.96,192.88,20.0]
[1735437591628,0.77717804,192.96,192.86,10.33438789]
[1735437593829,0.77717804,192.96,192.87,10.33438789]
[1735437594036,0.77717804,192.98,192.87,10.33438789]
[1735437594330,0.77717804,192.98,192.89,16.23438789]
[1735437595138,0.77717804,192.99,192.89,16.23438789]
[1735437596507,24.55406204,193.0,192.89,16.23438789]
[1735437597027,32.60523589,193.0,192.89,16.23438789]
[1735437599436,24.55406204,193.0,192.89,16.23438789]
[1735437602629,0.77717804,193.0,192.92,36.23438789]
[1735437602820,8.05117385,193.01,192.93,16.23438789]
[1735437603330,8.05117385,193.01,192.94,16.23438789]
[1735437603650,8.05117385,193.01,192.98,5.9]
[1735437603941,8.82835189,193.05,192.98,5.9]
[1735437604436,8.82835189,193.05,192.98,25.9]
[1735437604813,0.77717804,193.05,192.98,25.9]
[1735437605028,0.77717804,193.06,192.98,25.9]
[1735437609241,23.776884,193.05,192.9,8.19857576]
[1735437609415,23.776884,193.03,192.92,10.33438789]
[1735437609618,0.77717804,193.02,192.92,10.33438789]
[1735437610031,23.776884,193.01,192.94,5.9]
[1735437610240,0.77717804,193.0,192.94,5.9]
[1735437612520,0.77717804,193.02,192.94,5.9]
[1735437613441,24.55406204,193.03,192.94,5.9]
[1735437615522,32.60523589,193.03,192.94,5.9]
[1735437615741,8.82835189,193.03,192.94,5.9]
[1735437615942,8.82835189,193.03,192.97,20.0]
[1735437616245,0.77717804,193.04,192.97,25.9]
[1735437617224,24.55406204,193.06,192.97,25.9]
[1735437620120,0.77717804,193.06,192.97,36.23438789]
[1735437621021,0.77717804,193.06,192.97,37.90048789]
[1735437621254,7.7878,193.07,192.97,37.90048789]
[1735437621450,0.77717804,193.06,192.97,37.90048789]
[1735437621658,0.77717804,193.06,192.98,10.33438789]
[1735437621850,7.7878,193.07,192.98,10.33438789]
[1735437622050,0.77717804,193.06,192.98,10.33438789]
[1735437622546,0.77717804,193.06,192.97,37.90048789]
[1735437623746,0.77717804,193.1,192.97,37.90048789]
[1735437624851,23.776884,193.09,192.97,37.90048789]
[1735437625037,0.77717804,193.08,192.97,37.90048789]
[1735437630354,0.77717804,193.08,192.98,10.33438789]
[1735437630954,0.77717804,193.08,192.98,16.23438789]
[1735437633355,0.77717804,193.08,192.99,10.33438789]
[1735437633751,0.77717804,193.1,192.99,16.23438789]
[1735437635058,0.77717804,193.1,192.99,5.9]
[1735437635652,23.776884,193.09,192.99,5.9]
[1735437635863,0.77717804,193.08,192.99,5.9]
[1735437638354,23.776884,193.07,192.99,5.9]
[1735437638546,0.77717804,193.06,192.99,5.9]
[1735437641060,0.73573263,193.06,192.99,5.9]
[1735437642242,0.73573263,193.07,192.99,5.9]
[1735437643233,0.73573263,193.09,192.99,5.9]
[1735437647652,23.776884,193.08,192.99,5.9]
[1735437647960,0.73573263,193.07,192.99,5.9]
[1735437648767,23.776884,193.08,192.99,5.9]
[1735437648953,0.73573263,193.07,192.99,5.9]
[1735437649258,24.51261663,193.1,192.99,5.9]
[1735437653071,24.51261663,193.1,192.99,16.23438789]
[1735437654986,24.51261663,193.1,192.99,5.9]
[1735437666079,32.56379048,193.1,192.99,5.9]
[1735437666576,23.776884,193.06,192.99,5.9]
[1735437666757,23.776884,193.04,192.93,5.9]
[1735437666958,23.776884,193.02,192.93,5.9]
[1735437667153,0.73573263,193.01,192.93,5.9]
[1735437683978,0.73573263,193.01,192.93,16.23438789]
[1735437684179,0.73573263,193.04,192.95,10.33438789]
[1735437685500,0.73573263,193.04,192.94,10.33438789]
[1735437688109,0.73573263,193.04,192.94,16.23438789]
[1735437690385,0.73573263,193.04,192.94,5.9]
[1735437690799,23.776884,193.03,192.94,5.9]
[1735437691022,7.9097,193.05,192.94,5.9]
[1735437691023,23.776884,193.01,192.94,5.9]
[1735437691308,23.776884,192.99,192.94,5.9]
[1735437691505,0.73573263,192.98,192.94,5.9]
[1735437691810,8.2883,192.97,192.88,5.9]
[1735437692012,0.73573263,192.96,192.88,5.9]
[1735437692309,0.73573263,192.98,192.9,10.33438789]
[1735437692698,23.776884,192.99,192.9,16.23438789]
[1735437692897,0.73573263,192.98,192.9,16.23438789]
[1735437693295,0.73573263,192.98,192.9,5.9]
[1735437693508,23.776884,192.97,192.9,5.9]
[1735437693683,0.73573263,192.96,192.9,5.9]
[1735437695193,0.73573263,193.02,192.9,5.9]
[1735437695389,0.73573263,193.02,192.9,16.23438789]
[1735437695697,0.73573263,193.02,192.9,5.9]
[1735437696011,23.776884,193.01,192.9,5.9]
[1735437696214,23.776884,192.99,192.9,5.9]
[1735437696398,0.73573263,192.98,192.9,5.9]
[1735437697715,0.73573263,192.98,192.9,16.23438789]
[1735437697919,0.73573263,193.02,192.94,25.9]
[1735437707532,24.51261663,193.06,192.94,25.9]
[1735437707708,24.51261663,193.06,192.94,36.23438789]
[1735437708735,24.51261663,193.06,192.94,25.9]
[1735437710125,24.51261663,193.06,192.94,36.23438789]
[1735437710334,0.73573263,193.06,192.98,25.9]
[1735437713736,0.73573263,193.06,192.99,1.5778]
[1735437713953,0.73573263,193.08,192.99,11.91218789]
[1735437714323,8.05117385,193.09,193.03,20.0]
[1735437714949,0.73573263,193.1,193.03,20.0]
[1735437715945,24.51261663,193.11,193.03,25.9]
[1735437718035,0.73573263,193.11,193.03,25.9]
[1735437718238,8.78690648,193.12,193.03,25.9]
[1735437718422,8.78690648,193.12,193.03,36.23438789]
[1735437718623,8.05117385,193.12,193.07,25.9]
[1735437719043,0.73573263,193.11,193.07,25.9]
[1735437719719,0.73573263,193.13,193.07,25.9]
[1735437720760,23.776884,193.12,193.07,5.9]
[1735437721052,0.73573263,193.11,193.07,5.9]
[1735437721861,0.73573263,193.12,193.07,5.9]
[1735437722953,0.73573263,193.13,193.07,5.9]
[1735437724254,29.927584,193.12,193.07,5.9]
[1735437724559,0.73573263,193.11,193.02,5.9]
[1735437726374,6.1507,193.12,193.02,16.23438789]
[1735437726681,0.73573263,193.13,193.06,25.9]
[1735437726843,0.73573263,193.15,193.06,36.23438789]
[1735437727276,0.73573263,193.17,193.1,25.9]
[1735437727577,0.73573263,193.18,193.1,25.9]
[1735437728070,0.73573263,193.18,193.1,36.23438789]
[1735437728370,0.73573263,193.18,193.1,25.9]
[1735437728563,0.73573263,193.19,193.1,25.9]
[1735437730161,0.73573263,193.19,193.1,36.23438789]
[1735437730355,0.73573263,193.21,193.14,5.9]
[1735437730549,1.592,193.25,193.15,36.23438789]
[1735437730750,0.73573263,193.24,193.16,10.33438789]
[1735437730967,0.73573263,193.24,193.16,16.23438789]
[1735437731476,0.73573263,193.26,193.16,16.23438789]
[1735437732484,0.73573263,193.26,193.19,10.33438789]
[1735437732770,23.776884,193.28,193.19,5.9]
[1735437732974,23.776884,193.26,193.19,5.9]
[1735437733175,0.73573263,193.25,193.19,5.9]
[1735437733974,23.776884,193.24,193.19,5.9]
[1735437734177,0.73573263,193.25,193.13,7.4512]
[1735437734178,23.776884,193.22,193.13,7.4512]
[1735437734377,0.73573263,193.21,193.13,5.9]
[1735437738356,23.776884,193.2,193.13,5.9]
[1735437738556,0.73573263,193.19,193.13,5.9]
[1735437738974,0.73573263,193.19,193.09,20.0]
[1735437739280,23.776884,193.18,193.09,20.0]
[1735437739465,0.73573263,193.17,193.09,20.0]
[1735437739870,23.776884,193.16,193.09,5.9]
[1735437740179,0.73573263,193.15,193.09,5.9]
[1735437742957,0.73573263,193.15,193.06,20.0]
[1735437742958,23.776884,193.14,193.06,25.9]
[1735437743160,0.73573263,193.13,193.06,5.9]
[1735437744963,23.776884,193.12,193.03,25.9]
[1735437745163,0.73573263,193.11,193.03,25.9]
[1735437746084,23.776884,193.08,192.97,7.4143]
[1735437746304,0.73573263,193.07,192.97,7.4143]
[1735437746476,0.73573263,193.07,193.0,20.0]
[1735437746663,0.73573263,193.08,193.0,30.33438789]
[1735437747162,24.51261663,193.12,193.02,25.9]
[1735437755178,0.73573263,193.12,193.02,25.9]
[1735437761178,23.776884,193.11,193.02,25.9]
[1735437761497,23.776884,193.09,192.97,7.4143]
[1735437761696,23.776884,193.07,192.97,7.4143]
[1735437761878,0.73573263,193.06,192.97,7.4143]
[1735437764296,23.776884,193.05,192.97,5.9]
[1735437764496,0.73573263,193.04,192.97,5.9]
[1735437768204,1.5608,193.07,192.97,5.9]
[1735437768495,0.73573263,193.06,192.97,5.9]
[1735437769273,24.51261663,193.09,192.97,5.9]
[1735437771091,24.51261663,193.09,193.0,25.9]
[1735437775017,0.73573263,193.09,193.0,25.9]
[1735437777208,0.73573263,193.1,193.0,37.84868789]
[1735437777799,0.73573263,193.1,193.01,16.23438789]
[1735437778001,24.51261663,193.14,193.01,16.23438789]
[1735437778605,24.51261663,193.14,193.02,10.33438789]
[1735437779305,24.51261663,193.14,193.02,16.23438789]
[1735437780696,24.51261663,193.14,193.02,5.9]
[1735437783197,23.776884,193.1,193.02,5.9]
[1735437783393,31.537084,193.08,192.95,7.5143]
[1735437783694,23.776884,193.06,192.95,7.5143]
[1735437784001,23.776884,193.04,192.95,7.5143]
[1735437784215,0.73573263,193.03,192.95,7.5143]
[1735437787316,0.73573263,193.07,192.95,7.5143]
[1735437787828,23.776884,193.06,192.95,7.5143]
[1735437788009,0.73573263,193.05,192.95,7.5143]
[1735437788708,23.776884,193.04,192.95,5.9]
[1735437788909,0.73573263,193.03,192.95,5.9]
[1735437790321,23.776884,193.02,192.95,5.9]
[1735437790506,0.73573263,193.01,192.95,5.9]
[1735437790707,24.51261663,193.04,192.95,5.9]
[1735437802224,24.51261663,193.04,192.93,5.9]
[1735437805930,23.776884,193.02,192.93,5.9]
[1735437806130,0.73573263,193.01,192.93,5.9]
[1735437807227,24.51261663,193.02,192.93,5.9]
[1735437808327,0.73573263,193.02,192.93,5.9]
[1735437808635,0.73573263,193.02,192.94,10.33438789]
[1735437808931,0.73573263,193.05,192.96,20.0]
[1735437809528,23.776884,193.04,192.96,20.0]
[1735437809729,0.73573263,193.03,192.96,20.0]
[1735437811009,0.73573263,193.06,192.96,20.0]
[1735437811233,0.73573263,193.06,192.96,25.9]
[1735437811414,23.776884,193.05,192.96,25.9]
[1735437811609,0.73573263,193.04,192.96,25.9]
[1735437812519,0.73573263,193.05,192.96,25.9]
[1735437819218,0.73573263,193.05,192.96,5.9]
[1735437819417,23.776884,193.02,192.96,5.9]
[1735437819623,0.73573263,193.01,192.96,5.9]
[1735437820328,0.73573263,193.01,192.93,20.0]
[1735437820930,0.73573263,193.01,192.9,18.57325559]
[1735437821326,23.776884,193.0,192.9,7.4615]
[1735437821536,0.73573263,192.99,192.9,7.4615]
[1735437835966,0.73573263,192.99,192.9,18.57328854]
[1735437836134,0.73573263,193.0,192.9,18.57328854]
[1735437836340,0.73573263,193.0,192.91,10.33438789]
[1735437836951,0.73573263,193.0,192.93,20.0]
[1735437837250,24.51261663,193.02,192.93,20.0]
[1735437838363,24.51261663,193.02,192.93,25.9]
[1735437838740,32.56379048,193.02,192.93,25.9]
[1735437839136,8.78690648,193.02,192.93,25.9]
[1735437839344,8.05117385,193.02,192.93,25.9]
[1735437839542,8.05117385,193.02,192.93,36.23438789]
[1735437839964,0.73573263,193.03,192.93,25.9]
[1735437842762,0.73573263,193.04,192.93,25.9]
[1735437843667,24.51261663,193.05,192.93,25.9]
[1735437844182,32.56379048,193.05,192.93,25.9]
[1735437844872,8.05117385,193.04,192.93,25.9]
[1735437845083,0.73573263,193.03,192.93,25.9]
[1735437845446,23.776884,193.02,192.93,25.9]
[1735437845667,0.73573263,193.01,192.93,25.9]
[1735437845873,0.73573263,193.01,192.93,5.9]
[1735437846670,24.51261663,193.03,192.93,5.9]
[1735437846846,0.73573263,193.03,192.93,5.9]
[1735437847648,32.56379048,193.03,192.93,5.9]
[1735437848359,24.51261663,193.03,192.93,5.9]
[1735437851174,0.73573263,193.03,192.96,20.0]
[1735437851377,0.73573263,193.04,192.96,5.9]
[1735437851563,23.776884,193.03,192.96,5.9]
[1735437851751,0.73573263,193.02,192.96,5.9]
[1735437855478,23.776884,193.01,192.96,5.9]
[1735437855656,0.73573263,193.0,192.96,5.9]
[1735437855856,0.73573263,193.03,192.96,5.9]
[1735437856386,8.78690648,193.03,192.96,5.9]
[1735437857684,0.73573263,193.03,192.96,5.9]
[1735437857863,0.73573263,193.04,192.96,5.9]
[1735437860865,0.73573263,193.05,192.96,16.23438789]
[1735437861067,8.78690648,193.06,192.96,16.23438789]
[1735437861871,0.73573263,193.06,192.96,16.23438789]
[1735437864494,0.73573263,193.06,192.96,5.9]
[1735437868694,0.73573263,193.06,192.99,20.0]
[1735437869882,0.73573263,193.07,192.99,20.0]
[1735437871397,0.73573263,193.07,192.99,25.9]
[1735437878976,31.917684,193.06,192.99,5.9]
[1735437879182,23.776884,193.04,192.91,7.4884]
[1735437879406,23.776884,193.02,192.91,7.4884]
[1735437879607,0.73573263,193.01,192.91,7.4884]
[1735437880303,0.73573263,193.01,192.91,17.82278789]
[1735437880510,0.73573263,193.01,192.91,7.4884]
[1735437881302,23.776884,193.0,192.91,7.4884]
[1735437881482,0.73573263,192.99,192.91,5.9]
[1735437882407,24.51261663,193.02,192.91,5.9]
[1735437883801,23.776884,193.0,192.91,5.9]
[1735437884009,0.73573263,192.99,192.91,5.9]
[1735437884902,24.51261663,193.0,192.91,5.9]
[1735437886997,8.05117385,193.03,192.92,10.33438789]
[1735437886998,8.78690648,193.03,192.92,10.33438789]
[1735437887194,8.78690648,193.03,192.95,25.9]
[1735437887383,0.73573263,193.03,192.95,25.9]
[1735437888298,0.73573263,193.04,192.95,25.9]
[1735437889218,24.51261663,193.05,192.95,25.9]
[1735437896137,0.73573263,193.05,192.95,36.23438789]
[1735437906626,0.73573263,193.05,192.95,25.9]
[1735437906928,23.776884,193.04,192.95,25.9]
[1735437907115,0.73573263,193.03,192.95,25.9]
[1735437911837,23.776884,193.02,192.92,7.4884]
[1735437912052,23.776884,193.0,192.92,5.9]
[1735437912238,0.73573263,192.99,192.92,5.9]
[1735437913008,23.776884,192.98,192.92,5.9]
[1735437913215,0.73573263,192.97,192.92,5.9]
[1735437913415,23.776884,192.98,192.92,5.9]
[1735437913617,0.73573263,192.97,192.92,5.9]
[1735437914553,0.73573263,192.97,192.87,1.5536]
[1735437914554,23.776884,192.96,192.88,5.9]
[1735437914732,0.73573263,192.95,192.88,5.9]
[1735437915644,23.776884,192.94,192.83,17.78798789]
[1735437915821,0.73573263,192.93,192.86,20.0]
[1735437916630,0.73573263,192.93,192.86,25.9]
[1735437917220,20.0,192.96,192.86,25.9]
[1735437917426,0.73573263,192.95,192.86,25.9]
[1735437918344,24.51261663,192.96,192.86,25.9]
[1735437920543,24.51261663,192.96,192.84,5.9]
[1735437920745,23.776884,192.94,192.84,5.9]
[1735437921049,23.776884,192.92,192.84,5.9]
[1735437921223,0.73573263,192.91,192.84,5.9]
[1735437922737,23.776884,192.9,192.84,5.9]
[1735437922939,0.73573263,192.89,192.84,5.9]
[1735437923948,0.73573263,192.89,192.79,7.4324]
[1735437924120,23.776884,192.88,192.79,7.4324]
[1735437924323,0.73573263,192.87,192.79,5.9]
[1735437924520,23.776884,192.9,192.79,5.9]
[1735437924728,23.776884,192.88,192.79,5.9]
[1735437924925,0.73573263,192.87,192.79,5.9]
[1735437927245,20.0,192.92,192.79,16.23438789]
[1735437927430,0.73573263,192.91,192.79,16.23438789]
[1735437927630,0.73573263,192.91,192.79,5.9]
[1735437928059,23.776884,192.9,192.79,5.9]
[1735437928281,23.776884,192.88,192.79,5.9]
[1735437928447,0.73573263,192.87,192.79,5.9]
[1735437928834,0.73573263,192.91,192.79,5.9]
[1735437929032,0.73573263,192.91,192.79,16.23438789]
[1735437929668,23.776884,192.9,192.79,16.23438789]
[1735437929868,0.73573263,192.89,192.79,16.23438789]
[1735437930443,0.73573263,192.89,192.79,5.9]
[1735437940307,0.73573263,192.91,192.79,16.23438789]
[1735437940489,0.73573263,192.91,192.82,5.9]
[1735437943104,23.776884,192.9,192.82,5.9]
[1735437943408,0.73573263,192.89,192.82,5.9]
[1735437945407,23.776884,192.88,192.82,5.9]
[1735437945614,0.73573263,192.87,192.82,5.9]
[1735437945911,23.776884,192.89,192.76,23.25627166]
[1735437946088,23.776884,192.87,192.79,20.0]
[1735437946287,0.73573263,192.86,192.79,20.0]
[1735437948494,0.73573263,192.86,192.76,5.9]
[1735437958305,0.73573263,192.86,192.76,6.67797611]
[1735437959827,23.776884,192.88,192.76,17.012364]
[1735437960009,0.73573263,192.87,192.76,17.012364]
[1735437960214,0.73573263,192.89,192.8,25.9]
[1735437968659,8.1049,192.9,192.8,25.9]
[1735437968951,8.1049,192.9,192.8,26.67773771]
[1735437969532,0.73573263,192.92,192.84,25.9]
[1735437970725,0.73573263,192.92,192.84,5.9]
[1735437971424,24.51261663,192.93,192.84,5.9]
[1735437972039,32.56379048,192.93,192.84,5.9]
[1735437972744,24.51261663,192.93,192.84,5.9]
[1735437974654,32.56379048,192.93,192.84,5.9]
[1735437976054,24.51261663,192.93,192.84,5.9]
[1735437976353,0.73573263,192.93,192.84,5.9]
[1735437976642,8.78690648,192.94,192.87,20.0]
[1735437976839,8.05117385,192.94,192.87,20.0]
[1735437977043,8.05117385,192.94,192.84,5.9]
[1735437977549,8.05117385,192.94,192.87,20.0]
[1735437977749,8.35253263,192.95,192.87,20.0]
[1735437980653,8.35253263,192.95,192.84,5.9]
[1735437988067,7.6168,192.95,192.84,5.9]
[1735437988276,7.6168,192.95,192.87,25.9]
[1735437990765,0.73573263,192.97,192.87,25.9]
[1735437994470,24.51261663,192.98,192.87,25.9]
[1735437994849,0.73573263,192.98,192.87,25.9]
[1735437995168,0.73573263,192.98,192.87,37.01186149]
[1735437995365,8.58343263,192.99,192.87,37.01186149]
[1735437996266,7.8477,192.99,192.87,37.01186149]
[1735437996967,20.0,193.0,192.88,10.33438789]
[1735437997163,0.73573263,192.99,192.89,6.67733335]
[1735437998949,0.73573263,193.02,192.92,25.9]
[1735437999144,0.73573263,193.02,192.92,26.67728016]
[1735438005979,8.43323263,193.08,192.96,20.0]
[1735438006366,23.776884,193.07,192.96,20.0]
[1735438006567,0.73573263,193.06,192.96,20.0]
[1735438007767,0.73573263,193.07,192.96,25.9]
[1735438007969,23.776884,193.06,192.96,25.9]
[1735438008169,7.6975,193.08,192.96,25.9]
[1735438008170,0.73573263,193.05,192.96,25.9]
[1735438008485,23.776884,193.04,192.96,25.9]
[1735438008783,0.73573263,193.03,192.96,25.9]
[1735438011168,0.73573263,193.07,192.96,25.9]
[1735438011583,23.776884,193.06,192.96,25.9]
[1735438011769,0.73573263,193.05,192.96,25.9]
[1735438011968,24.51261663,193.07,192.96,25.9]
[1735438015396,0.73573263,193.07,192.96,25.9]
[1735438016095,0.73573263,193.07,192.96,36.23438789]
[1735438016612,8.68273263,193.12,193.0,25.9]
[1735438016793,8.68273263,193.12,193.0,26.67688614]
[1735438017676,8.68273263,193.12,193.0,25.9]
[1735438022496,8.68273263,193.12,193.0,36.23438789]
[1735438024505,8.68273263,193.12,193.01,11.11123532]
[1735438024690,7.947,193.12,193.04,25.9]
[1735438026589,27.9736,193.16,193.04,25.9]
[1735438026789,0.73573263,193.15,193.04,25.9]
[1735438031383,23.776884,193.14,193.04,25.9]
[1735438031588,23.776884,193.12,193.04,5.9]
[1735438031788,0.73573263,193.11,193.04,5.9]
[1735438033003,31.750484,193.1,193.01,5.9]
[1735438033199,23.776884,193.08,192.96,5.9]
[1735438033402,23.776884,193.06,192.96,5.9]
[1735438033615,0.73573263,193.05,192.96,5.9]
[1735438034714,23.776884,193.08,192.96,5.9]
[1735438034918,0.73573263,193.07,192.96,5.9]
[1735438040624,23.776884,193.06,192.96,5.9]
[1735438040803,0.73573263,193.05,192.96,5.9]
[1735438056311,0.73573263,193.08,192.96,16.23438789]
[1735438057441,0.73573263,193.08,192.97,10.33438789]
[1735438057826,24.51261663,193.09,192.97,10.33438789]
[1735438058131,24.51261663,193.09,192.96,17.0114162]
[1735438059339,24.51261663,193.09,192.96,5.9]
[1735438060416,32.56379048,193.09,192.96,5.9]
[1735438061324,25.413584,193.05,192.92,5.9]
[1735438061530,7.17653263,193.04,192.92,5.9]
[1735438061724,23.776884,193.03,192.92,5.9]
[1735438062041,0.73573263,193.02,192.92,5.9]
[1735438069561,23.776884,193.01,192.92,5.9]
[1735438069850,0.73573263,193.0,192.92,5.9]
[1735438090481,23.776884,192.99,192.92,5.9]
[1735438090781,8.05117385,193.03,192.86,5.9]
[1735438090782,23.776884,192.97,192.86,5.9]
[1735438090976,0.73573263,192.96,192.86,5.9]
[1735438091290,23.776884,192.95,192.86,5.9]
[1735438091467,0.73573263,192.94,192.86,5.9]
[1735438125411,23.776884,192.93,192.86,5.9]
[1735438125602,0.73573263,192.92,192.85,20.0]
[1735438125804,24.51261663,192.96,192.85,25.9]
[1735438129920,24.51261663,192.96,192.85,20.0]
[1735438131730,32.56379048,192.96,192.85,20.0]
[1735438132914,32.56379048,192.96,192.85,25.9]
[1735438138029,23.776884,192.94,192.85,25.9]
[1735438138228,0.73573263,192.93,192.85,20.0]
[1735438138426,0.73573263,192.93,192.84,10.33438789]
[1735438139129,0.73573263,192.94,192.84,10.33438789]
[1735438141929,8.78690648,192.94,192.84,5.9]
[1735438143633,8.05117385,192.93,192.84,5.9]
[1735438144439,8.05117385,192.93,192.85,10.33438789]
[1735438144731,8.05117385,192.93,192.84,16.23438789]
[1735438145737,0.73573263,192.92,192.84,5.9]
[1735438146943,8.78690648,192.93,192.84,5.9]
[1735438147646,8.78690648,192.93,192.84,16.23438789]
[1735438148040,8.78690648,192.93,192.84,5.9]
[1735438148430,8.05117385,192.93,192.84,5.9]
[1735438149748,8.05117385,192.93,192.84,16.23438789]
[1735438150921,8.05117385,192.93,192.84,5.9]
[1735438151443,0.73573263,192.92,192.84,5.9]
[1735438155850,8.78690648,192.92,192.84,5.9]
[1735438156942,8.78690648,192.92,192.87,20.0]
[1735438157151,8.05117385,192.92,192.87,20.0]
[1735438157744,8.78690648,192.93,192.87,20.0]
[1735438162365,8.05117385,192.92,192.87,20.0]
[1735438162939,8.78690648,192.93,192.87,20.0]
[1735438164146,8.05117385,192.93,192.87,25.9]
[1735438164354,8.05117385,192.93,192.9,20.0]
[1735438164748,8.05117385,192.96,192.9,20.0]
[1735438165474,8.05117385,192.97,192.9,25.9]
[1735438167737,8.05117385,192.97,192.9,37.0117466]
[1735438169280,16.1023477,192.98,192.9,37.0117466]
[1735438169281,0.73573263,193.0,192.9,37.0117466]
[1735438169876,0.73573263,193.01,192.9,37.0117466]
[1735438170447,0.73573263,193.01,192.9,25.9]
[1735438173572,0.73573263,193.01,192.9,36.23438789]
[1735438179068,0.73573263,193.01,192.9,25.9]
[1735438189182,0.73573263,193.01,192.9,25.9]
[1735438199293,0.73573263,193.02,192.94,25.9]
[1735438200898,7.7129,193.03,192.94,25.9]
[1735438201795,1.5893,193.03,192.94,36.23438789]
[1735438202093,0.73573263,193.05,192.95,17.01155376]
[1735438202297,0.73573263,193.05,192.98,20.0]